bitfinex-derivatives/quotes_ETHF0:USTF0_20251203
["timestamp","ask_amount","ask_price","bid_price","bid_amount"]
[1764738905075,3.4364,3056.9,3056.8,0.00417727]
[1764738907078,3.4364,3056.9,3056.8,3.53127727]
[1764738907484,3.4364,3056.9,3056.8,0.00417727]
[1764738910185,3.4364,3056.4,3056.3,7.107]
[1764738910484,6.6442,3056.4,3056.3,7.107]
[1764738910985,6.6442,3056.4,3055.9,3.2078]
[1764738910986,4.5495,3056.0,3055.9,3.2078]
[1764738911284,4.5495,3056.0,3055.9,0.00304415]
[1764738912282,7.7573,3056.0,3055.9,0.00304415]
[1764738914490,9.3297,3056.0,3055.9,0.00304415]
[1764738916187,3.4364,3055.1,3055.0,3.5271]
[1764738916392,4.5495,3055.0,3054.9,3.5271]
[1764738916583,6.64910219,3055.3,3055.2,3.5271]
[1764738917076,6.65166362,3055.3,3055.2,3.52964559]
[1764738917480,4.85646362,3055.3,3055.2,3.52964559]
[1764738917879,6.65166362,3055.3,3055.2,3.52964559]
[1764738919188,6.65166362,3055.3,3055.2,0.00254559]
[1764738921683,4.85646362,3055.3,3055.2,3.52964559]
[1764738922191,6.65166362,3055.3,3055.2,0.00254559]
[1764738923085,3.4364,3054.3,3054.2,3.5271]
[1764738923487,1.6412,3054.3,3054.2,3.5271]
[1764738923987,1.6412,3054.3,3054.2,3.53060922]
[1764738924886,1.6412,3054.3,3054.2,1.62490922]
[1764738924887,3.4364,3054.3,3054.2,1.62490922]
[1764738925388,3.4364,3053.1,3052.5,1.75135204]
[1764738925589,1.1131,3053.0,3052.5,2.7684]
[1764738925786,1.6412,3053.0,3052.9,3.5271]
[1764738926189,3.4364,3053.0,3052.9,1.6214]
[1764738926388,4.5495,3053.0,3052.5,1.147]
[1764738926688,4.55315237,3053.0,3052.5,1.15090296]
[1764738926880,6.6442,3052.8,3052.7,1.6214]
[1764738927086,3.2078,3052.8,3052.7,3.5271]
[1764738927289,3.4364,3052.6,3052.5,0.00390296]
[1764738927694,3.4364,3052.6,3052.5,1.62530296]
[1764738928085,3.4364,3052.6,3052.0,0.15216479]
[1764738928286,3.4364,3052.6,3050.1,6.24036902]
[1764738928287,0.5566,3051.0,3050.1,6.24036902]
[1764738928588,0.5566,3051.0,3050.2,1.73738168]
[1764738928589,40.8,3051.0,3050.2,1.73738168]
[1764738928791,0.8475,3052.0,3050.8,3.5271]
[1764738928792,0.00491031,3050.9,3050.8,3.5271]
[1764738928987,1.18040632,3052.0,3050.8,3.5271]
[1764738929182,0.4094,3051.1,3051.0,1.147]
[1764738929387,0.8188,3051.0,3050.9,1.73738168]
[1764738929588,0.8188,3051.0,3050.9,1.36325646]
[1764738930185,6.0,3050.9,3048.0,1.147]
[1764738930390,13.36709593,3051.0,3049.3,0.00491031]
[1764738930598,0.73510647,3050.9,3049.3,0.00491031]
[1764738930799,40.8,3050.8,3049.3,0.00491031]
[1764738931204,3.2078,3049.4,3049.3,3.53550759]
[1764738931387,3.2078,3049.4,3049.3,0.00840759]
[1764738931701,3.2078,3049.4,3049.3,1.62980759]
[1764738934002,6.4368,3049.4,3049.3,0.00840759]
[1764738934200,4.8223,3049.4,3049.3,0.00840759]
[1764738934393,6.4368,3049.4,3049.3,0.00840759]
[1764738934788,6.4368,3049.4,3049.3,0.00349728]
[1764738934996,1.6145,3048.7,3048.0,1.147]
[1764738935291,3.2078,3048.5,3048.4,2.5761]
[1764738935796,3.2078,3048.5,3048.4,4.2417]
[1764738936004,3.21155294,3048.5,3048.4,4.24406686]
[1764738936799,3.21155294,3048.5,3048.4,4.24897717]
[1764738937103,3.20664263,3048.5,3048.4,4.24406686]
[1764738937499,3.2078,3048.8,3048.7,4.2417]
[1764738937796,3.2078,3049.4,3049.3,4.2417]
[1764738937999,3.2078,3049.4,3049.3,2.5761]
[1764738938791,3.21190619,3049.4,3049.3,2.5761]
[1764738938992,4.82640619,3049.4,3048.7,3.2078]
[1764738939200,4.82640619,3049.4,3048.6,1.0662]
[1764738939794,3.21190619,3049.4,3049.3,5.5324]
[1764738940602,0.00410619,3049.4,3049.3,5.5324]
[1764738940996,4.8254,3052.8,3049.8,1.5785]
[1764738941194,0.74274149,3052.7,3052.0,3.2078]
[1764738941394,1.6176,3052.8,3051.4,9.82]
[1764738941395,1.99150206,3052.5,3051.4,9.82]
[1764738942000,0.00491908,3052.3,3051.6,0.00491908]
[1764738942599,0.00491908,3052.3,3051.7,3.2078]
[1764738942801,0.00491908,3052.3,3052.1,3.2078]
[1764738944005,0.00491908,3052.3,3052.2,5.5324]
[1764738944399,0.05700951,3054.3,3053.4,0.7892]
[1764738944598,1.6176,3055.5,3054.2,3.2078]
[1764738944800,0.74306986,3055.4,3054.3,1.799]
[1764738945007,1.6176,3055.5,3054.3,1.799]
[1764738945407,0.00491087,3055.2,3054.6,0.00491087]
[1764738945915,0.00491087,3055.2,3054.7,1.786]
[1764738946301,0.00491087,3055.2,3055.1,3.2078]
[1764738952804,1.6176,3054.8,3054.7,3.2078]
[1764738953013,0.00491087,3055.2,3054.7,3.2078]
[1764738954904,5.42871087,3055.2,3055.1,3.2078]
[1764738956208,2.78231087,3055.2,3055.1,3.2078]
[1764738956416,0.00491087,3055.2,3055.1,8.7402]
[1764738957413,0.00491087,3055.2,3055.1,3.2078]
[1764738957617,7.04631087,3055.2,3055.1,3.2078]
[1764738957909,2.7774,3054.7,3054.6,3.21271087]
[1764738958310,2.34801087,3055.2,3054.6,3.21271087]
[1764738958917,5.4238,3054.7,3054.6,3.21271087]
[1764738960219,2.7774,3054.7,3054.6,3.21271087]
[1764738960520,2.34801087,3055.2,3054.6,3.21271087]
[1764738962111,2.7774,3054.7,3054.6,3.21271087]
[1764738963323,2.34801087,3055.2,3054.6,3.21271087]
[1764738963520,6.227,3054.7,3054.6,3.21271087]
[1764738963821,3.322,3054.7,3054.6,3.21271087]
[1764738964524,2.34801087,3055.2,3054.6,3.21271087]
[1764738964525,2.34801087,3055.2,3054.6,6.55221087]
[1764738965024,6.227,3054.7,3054.6,3.21271087]
[1764738967223,47.027,3054.7,3054.6,3.21271087]
[1764738967431,47.027,3054.7,3053.1,3.2078]
[1764738967432,6.227,3053.6,3053.1,3.2078]
[1764738968231,3.322,3053.2,3053.1,3.3395]
[1764738968430,0.00327945,3053.2,3053.1,3.3435758]
[1764738968630,0.00327945,3053.2,3053.1,6.2433758]
[1764738969026,0.00491087,3053.7,3053.6,6.2393]
[1764738969524,3.32691087,3053.7,3053.1,3.2118758]
[1764738970021,3.32979142,3053.7,3053.1,3.2118758]
[1764738970222,3.2078,3053.5,3053.4,6.2393]
[1764738970926,3.2078,3053.5,3053.4,7.8867]
[1764738971226,0.00779142,3053.7,3053.6,6.2393]
[1764738971431,0.75127572,3053.7,3053.6,6.2393]
[1764738973518,4.07327572,3053.7,3053.3,3.2078]
[1764738973719,0.7434843,3053.6,3053.5,6.2393]
[1764738974628,0.7434843,3053.6,3053.5,7.8867]
[1764738975127,1.0703,3053.0,3051.5,1.6474]
[1764738975429,1.7264086,3052.2,3051.5,1.6474]
[1764738975628,0.7434843,3052.1,3051.5,1.6474]
[1764738975826,0.7434843,3052.0,3051.9,3.3395]
[1764738976240,6.9704843,3052.0,3051.9,0.0034563]
[1764738977535,8.72387921,3052.0,3051.9,0.0034563]
[1764738977833,8.72387921,3052.0,3051.0,1.6474]
[1764738978036,3.2078,3051.4,3051.0,1.6474]
[1764738978332,3.2078,3051.4,3051.2,3.3395]
[1764738978939,3.21022069,3051.4,3051.3,3.3395]
[1764738979437,3.21022069,3051.4,3051.3,6.2393]
[1764738980328,0.00242069,3051.4,3051.3,9.4471]
[1764738981029,2.069e-05,3051.4,3051.3,9.4471]
[1764738981235,40.8,3052.0,3051.9,6.2393]
[1764738981536,3.2078,3052.1,3051.9,6.2393]
[1764738981731,3.2078,3052.1,3052.0,6.2393]
[1764738982236,3.21112942,3052.1,3052.0,6.2393]
[1764738983326,6.53312942,3052.1,3052.0,3.3395]
[1764738984341,3.21112942,3052.1,3052.0,6.2393]
[1764738984534,3.21112942,3052.1,3052.0,7.8867]
[1764738985032,0.00332942,3052.1,3052.0,7.8867]
[1764738987943,6.227,3051.8,3051.2,0.00314861]
[1764738988241,6.227,3051.3,3051.2,0.00314861]
[1764738988440,3.2078,3051.4,3051.3,6.2393]
[1764738988840,3.2078,3051.8,3051.3,6.2393]
[1764738989142,3.2078,3051.8,3051.7,6.2393]
[1764738990642,3.2078,3051.8,3051.7,3.3395]
[1764738990832,3.2078,3051.8,3051.7,6.2393]
[1764738992446,3.322,3051.7,3051.3,3.2078]
[1764738993133,3.2078,3051.8,3051.7,6.9083]
[1764738993638,3.2078,3051.8,3051.3,3.2078]
[1764738993639,6.5755,3051.8,3051.3,3.2078]
[1764738994947,3.2078,3051.8,3051.7,6.9083]
[1764738996050,9.8799,3051.8,3051.3,3.2078]
[1764738996241,3.2078,3051.8,3051.3,3.2078]
[1764738996442,0.74410217,3051.7,3051.3,3.2078]
[1764738996747,3.2078,3051.8,3051.2,0.00314861]
[1764738996944,0.74410006,3051.7,3051.2,0.00314861]
[1764738997143,3.2078,3051.8,3051.2,0.00314861]
[1764738997343,0.74450162,3051.7,3051.2,0.00314861]
[1764738997645,3.2078,3051.8,3051.2,0.00314861]
[1764738997844,3.2078,3051.8,3051.7,6.9083]
[1764739000750,0.00332942,3052.1,3052.0,8.8973]
[1764739001347,0.7497645,3052.1,3052.0,8.8973]
[1764739002648,0.00332942,3052.1,3052.0,8.8973]
[1764739002844,2.007,3052.5,3052.4,6.8898]
[1764739003146,3.2078,3053.1,3053.0,6.8898]
[1764739003350,3.9546,3053.1,3053.0,6.8898]
[1764739003856,3.9546,3053.1,3053.0,8.8239]
[1764739003857,3.95805908,3053.1,3053.0,8.8239]
[1764739004251,2.6851,3053.8,3053.3,6.8898]
[1764739004549,2.6851,3053.8,3053.7,6.8898]
[1764739004742,1.75339491,3054.8,3053.7,6.8898]
[1764739004947,3.48969491,3055.0,3053.7,6.8898]
[1764739005146,3.48969491,3055.0,3053.8,5.168]
[1764739005147,1.7363,3055.0,3053.8,5.168]
[1764739005345,0.00491087,3054.7,3053.8,5.17162286]
[1764739005545,0.00491087,3054.7,3053.9,10.682]
[1764739006047,0.00491087,3054.7,3053.8,0.00362286]
[1764739006257,3.2078,3054.3,3053.8,0.00362286]
[1764739006458,0.00491087,3054.7,3053.8,0.00362286]
[1764739006459,9.7445,3053.9,3053.8,0.00362286]
[1764739006753,9.7445,3053.9,3052.9,3.2078]
[1764739007050,6.4993,3053.9,3053.8,3.407]
[1764739007245,3.2078,3053.9,3053.8,6.8898]
[1764739007753,2.068,3054.5,3053.8,6.89214919]
[1764739007754,3.2078,3054.4,3053.8,6.89214919]
[1764739007959,3.2078,3054.4,3054.3,3.407]
[1764739008257,3.2078,3054.4,3054.3,6.8898]
[1764739008451,3.2078,3054.4,3053.8,0.00234919]
[1764739008452,6.4993,3054.4,3053.8,0.00234919]
[1764739008952,3.2078,3054.4,3053.8,6.89214919]
[1764739011350,3.2078,3054.4,3054.3,6.8898]
[1764739011952,0.00491087,3054.7,3054.3,12.8898]
[1764739012151,0.0029021,3055.0,3054.9,6.8898]
[1764739013448,5.3624021,3055.0,3054.6,10.37471087]
[1764739013644,0.0029021,3055.0,3054.9,6.8898]
[1764739014247,8.6076021,3055.0,3054.6,3.21271087]
[1764739014452,3.2915,3054.7,3054.6,3.21271087]
[1764739014855,3.2915,3054.7,3054.6,3.41191087]
[1764739015158,6.5367,3054.7,3054.6,0.00491087]
[1764739016648,5.2787021,3055.0,3054.6,3.41191087]
[1764739017556,3.2915,3054.7,3054.6,0.00491087]
[1764739018053,6.5367,3054.7,3054.6,0.00491087]
[1764739019056,3.2915,3054.7,3054.6,3.41191087]
[1764739019856,6.5367,3054.7,3054.6,0.00491087]
[1764739020456,3.2915,3054.7,3054.6,3.41191087]
[1764739020656,6.5367,3054.7,3054.6,0.00491087]
[1764739021058,3.2915,3054.7,3054.6,3.41191087]
[1764739021245,5.2787021,3055.0,3054.6,6.89471087]
[1764739021960,8.5702021,3055.0,3054.9,3.407]
[1764739022156,0.0029021,3055.0,3054.9,6.8898]
[1764739023560,8.6024021,3055.0,3054.6,11.60671087]
[1764739023762,6.8987,3054.7,3054.6,3.21271087]
[1764739024053,6.8987,3054.3,3053.8,3.21014919]
[1764739024657,3.5234,3053.9,3053.8,3.21014919]
[1764739024856,3.5234,3053.9,3053.8,3.67344919]
[1764739025059,3.5234,3053.9,3053.8,6.89724919]
[1764739025255,1.9327,3054.0,3053.9,3.6711]
[1764739026061,5.1405,3054.5,3053.9,6.8949]
[1764739027463,1.9327,3054.5,3054.1,3.2078]
[1764739027656,6.8987,3053.9,3053.8,3.0368]
[1764739027860,6.8987,3053.9,3051.5,9.53256011]
[1764739027861,6.8987,3053.9,3051.5,1.9737]
[1764739027862,0.16373,3053.2,3051.5,1.9737]
[1764739028061,0.74018098,3053.1,3052.0,3.6711]
[1764739028262,43.47288098,3053.0,3052.0,3.6711]
[1764739028464,0.74018098,3052.9,3052.0,3.6711]
[1764739028764,0.00491087,3052.8,3052.2,1.9737]
[1764739029060,0.00750057,3052.8,3052.2,1.9737]
[1764739029361,3.2078,3052.3,3052.2,5.6448]
[1764739030163,3.2078,3052.3,3052.2,8.8686]
[1764739030750,0.00750057,3052.8,3052.7,6.8949]
[1764739032263,6.73870057,3052.8,3052.2,1.9737]
[1764739040164,6.73870057,3052.8,3052.7,3.6711]
[1764739040370,10.11400057,3052.8,3052.7,3.6711]
[1764739040974,10.11400057,3052.8,3052.2,1.9737]
[1764739041373,10.11400057,3052.8,3052.7,3.6711]
[1764739042170,3.21530057,3052.8,3052.7,6.8949]
[1764739044368,11.3828,3053.4,3053.3,4.1553]
[1764739044577,11.3828,3053.4,3052.6,3.37156]
[1764739045374,4.02741087,3053.3,3053.2,8.2782]
[1764739045679,0.00491087,3053.3,3053.2,8.2782]
[1764739046579,4.02741087,3053.3,3053.2,8.2782]
[1764739046779,0.00491087,3053.3,3053.2,8.2782]
[1764739049182,4.0225,3053.1,3053.0,9.6403]
[1764739049386,0.00491087,3053.3,3053.2,8.2782]
[1764739050683,8.17991087,3053.3,3053.2,8.2782]
[1764739051277,4.02741087,3053.3,3053.2,8.2782]
[1764739054783,8.17991087,3053.3,3053.2,8.2782]
[1764739055293,7.93471087,3053.3,3053.2,8.2782]
[1764739055489,4.02741087,3053.3,3053.2,8.2782]
[1764739055991,0.00491087,3053.3,3053.2,8.2782]
[1764739056393,3.92691087,3053.3,3053.2,8.2782]
[1764739056595,0.00491087,3053.3,3053.2,8.2782]
[1764739057187,3.92691087,3053.3,3053.2,18.9762]
[1764739057492,0.00491087,3053.3,3053.2,8.2782]
[1764739058293,7.83421087,3053.3,3053.2,4.1553]
[1764739058500,7.8293,3053.1,3053.0,11.2834]
[1764739059595,3.922,3053.1,3053.0,11.2834]
[1764739059999,3.922,3053.1,3053.0,13.6615]
[1764739061698,4.1089,3052.7,3052.6,7.0573]
[1764739061896,8.1134,3052.7,3052.6,10.9542]
[1764739062097,0.00491087,3053.3,3053.2,7.7464]
[1764739062291,4.00941087,3053.3,3053.2,7.7464]
[1764739062496,8.11831087,3053.3,3053.2,7.7464]
[1764739062700,8.11831087,3053.3,3053.2,3.8495]
[1764739062998,8.1134,3053.1,3053.0,10.1245]
[1764739063203,8.1134,3053.1,3053.0,7.7464]
[1764739063498,4.0045,3052.8,3052.7,7.0573]
[1764739063694,8.1134,3052.8,3052.7,10.9542]
[1764739063997,40.80491087,3053.3,3053.2,7.7464]
[1764739064197,41.54249081,3053.3,3053.2,7.7464]
[1764739064601,8.85589081,3053.3,3053.2,7.7464]
[1764739064790,4.74699081,3053.3,3053.2,7.7464]
[1764739064990,0.74249081,3053.3,3053.2,7.7464]
[1764739067806,4.74699081,3053.3,3053.2,7.7464]
[1764739068404,0.74249081,3053.3,3053.2,7.7464]
[1764739072514,0.00245348,3053.4,3053.3,7.7464]
[1764739072812,11.3212,3054.2,3054.1,3.8495]
[1764739073215,11.3212,3054.2,3054.1,7.7464]
[1764739073720,11.32391933,3054.2,3054.1,3.8495]
[1764739073916,11.32391933,3054.2,3054.1,7.7464]
[1764739074718,8.11611933,3054.2,3054.1,7.7464]
[1764739075212,8.11611933,3054.2,3054.1,3.8495]
[1764739076210,0.00271933,3054.2,3054.1,7.7464]
[1764739076913,4.00721933,3054.2,3054.1,7.7464]
[1764739077120,8.11611933,3054.2,3054.1,7.7464]
[1764739077315,4.00721933,3054.2,3054.1,7.7464]
[1764739078014,0.00271933,3054.2,3054.1,7.7464]
[1764739078216,0.00271933,3054.2,3054.1,10.9542]
[1764739078418,0.00491087,3054.5,3054.4,7.7464]
[1764739079317,0.00834291,3054.5,3054.4,7.75055146]
[1764739079926,4.01284291,3054.5,3054.4,7.75055146]
[1764739080127,0.00834291,3054.5,3054.4,7.75055146]
[1764739080520,0.00834291,3054.5,3054.4,20.93455146]
[1764739081624,8.12174291,3054.5,3054.4,20.93455146]
[1764739081826,8.12174291,3054.5,3054.4,20.92755146]
[1764739082028,8.12174291,3054.5,3054.4,17.02865146]
[1764739082222,10.51814291,3054.5,3054.4,0.00415146]
[1764739082528,10.51814291,3054.5,3054.4,3.85365146]
[1764739084327,10.51814291,3054.5,3054.4,0.00415146]
[1764739088133,7.3143,3054.2,3054.1,6.8759]
[1764739088326,3.4959,3054.2,3054.1,10.9541]
[1764739088728,3.4959,3054.2,3054.1,7.7463]
[1764739089035,3.4959,3054.2,3054.1,7.74905297]
[1764739090132,3.50424291,3054.5,3054.4,7.7463]
[1764739090330,0.00834291,3054.5,3054.4,7.7463]
[1764739090827,3.50424291,3054.5,3054.4,7.7463]
[1764739091834,3.4959,3054.2,3054.1,20.90405297]
[1764739092033,7.3143,3054.2,3054.1,3.67085297]
[1764739092232,7.3143,3054.2,3054.1,7.74905297]
[1764739092729,7.3143,3054.2,3054.1,3.67085297]
[1764739092933,7.3143,3054.2,3054.1,0.00275297]
[1764739093530,5.09004291,3054.5,3054.1,7.74905297]
[1764739093733,10.53044291,3054.5,3054.4,7.7463]
[1764739094030,3.21614291,3054.5,3054.4,7.7463]
[1764739094236,0.00834291,3054.5,3054.4,7.7463]
[1764739094638,7.32264291,3054.5,3054.4,7.7463]
[1764739094941,0.00834291,3054.5,3054.4,7.7463]
[1764739096836,3.2078,3054.9,3054.4,7.7463]
[1764739097043,3.2078,3054.9,3054.8,7.7463]
[1764739097335,3.93797772,3054.9,3054.8,7.7463]
[1764739097741,3.94126241,3054.9,3054.8,7.7463]
[1764739098434,0.73346241,3054.9,3054.8,7.7463]
[1764739101641,4.22936241,3054.9,3054.8,7.7463]
[1764739102441,0.73346241,3054.9,3054.8,7.7463]
[1764739102847,7.3143,3054.4,3054.3,3.2078]
[1764739103144,7.3143,3054.4,3053.8,9.51274349]
[1764739103145,3.4959,3053.9,3053.8,9.51274349]
[1764739103332,8.04599042,3053.9,3053.8,7.75121087]
[1764739103538,8.04599042,3053.9,3053.8,3.67301087]
[1764739103739,0.73169042,3053.9,3053.8,7.75121087]
[1764739103942,9.79967813,3054.3,3054.2,3.6681]
[1764739104145,7.3143,3053.9,3053.8,3.67301087]
[1764739104343,11.25408322,3053.9,3053.8,3.67704188]
[1764739104542,11.25408322,3053.9,3053.8,7.75524188]
[1764739104543,7.43568322,3053.9,3053.8,7.75524188]
[1764739104744,8.04628322,3053.9,3053.8,7.75524188]
[1764739105145,8.04628322,3053.9,3053.8,3.67704188]
[1764739105343,8.04628322,3053.9,3053.8,0.00894188]
[1764739105646,8.04628322,3053.9,3053.8,3.67704188]
[1764739105843,0.73198322,3053.9,3053.8,7.75524188]
[1764739106441,10.5221,3054.3,3054.2,7.7463]
[1764739106640,11.25353996,3054.3,3054.2,3.6681]
[1764739107242,11.25353996,3054.3,3054.2,7.7463]
[1764739107439,7.43513996,3054.3,3054.2,7.7463]
[1764739107646,11.25353996,3054.3,3054.2,3.6681]
[1764739107840,11.25353996,3054.3,3054.2,7.7463]
[1764739108242,3.93923996,3054.3,3054.2,7.7463]
[1764739108551,3.21108469,3054.9,3054.2,20.8763]
[1764739108746,8.0455469,3054.8,3054.7,3.6681]
[1764739110746,7.3143,3053.9,3053.8,0.00894188]
[1764739110951,8.0455469,3053.9,3053.8,0.00894188]
[1764739111450,7.4349469,3053.9,3053.8,7.75524188]
[1764739111643,4.2271469,3053.9,3053.8,7.75524188]
[1764739111948,5.644,3054.5,3053.8,7.75524188]
[1764739112248,0.73112758,3054.4,3053.8,7.75524188]
[1764739112452,0.73112758,3054.3,3053.8,7.75524188]
[1764739112644,3.4959,3053.9,3053.8,7.75524188]
[1764739112846,8.04543627,3053.9,3053.8,0.00894188]
[1764739113344,8.04543627,3053.9,3053.0,4.13963262]
[1764739113345,3.1786,3053.1,3053.0,10.1939]
[1764739113550,4.5286,3053.5,3053.4,3.2303]
[1764739113745,3.2078,3053.7,3053.6,6.9861]
[1764739113939,3.93887965,3053.7,3053.6,6.9861]
[1764739114447,3.2078,3053.7,3053.6,6.98856994]
[1764739114746,9.8949,3053.7,3053.6,3.23276994]
[1764739114949,9.8949,3053.7,3053.6,0.00246994]
[1764739115251,10.62573883,3053.7,3053.6,0.00246994]
[1764739115451,9.62573883,3053.7,3053.6,0.00246994]
[1764739116456,2.93863883,3053.7,3053.6,7.02836994]
[1764739116840,9.71463883,3053.7,3053.6,3.59916994]
[1764739117044,9.71463883,3053.7,3053.6,0.00246994]
[1764739117949,9.71463883,3053.7,3053.6,3.59916994]
[1764739118452,9.71463883,3053.7,3053.6,0.00246994]
[1764739119456,9.71463883,3053.7,3053.6,7.02836994]
[1764739119951,2.2078,3053.7,3053.6,7.02836994]
[1764739120158,3.2078,3054.2,3054.1,7.0259]
[1764739122059,0.00491087,3054.5,3054.4,7.0259]
[1764739122252,0.75698947,3054.5,3054.4,7.0259]
[1764739122554,4.17508947,3054.5,3054.4,7.0259]
[1764739122857,2.65778947,3054.5,3054.0,9.1744]
[1764739123058,7.5280786,3054.4,3054.3,3.5967]
[1764739123952,4.1701786,3054.4,3054.3,7.0259]
[1764739124153,0.7520786,3054.4,3054.3,7.0259]
[1764739124353,0.00491087,3054.5,3054.4,7.0259]
[1764739124565,0.75700534,3054.5,3054.4,7.0259]
[1764739125055,4.17510534,3054.5,3054.4,7.0259]
[1764739126158,0.75700534,3054.5,3054.4,7.0259]
[1764739127361,4.17510534,3054.5,3054.4,7.0259]
[1764739128860,0.75700534,3054.5,3054.4,7.0259]
[1764739130762,0.00491087,3054.5,3054.4,7.0259]
[1764739131163,0.75767138,3054.5,3054.4,7.0259]
[1764739131359,9.43447138,3054.5,3054.0,2.1485]
[1764739131661,8.68171087,3054.5,3054.4,7.0259]
[1764739131962,7.53367566,3054.5,3054.4,7.0259]
[1764739132558,6.776,3054.1,3054.0,7.0259]
[1764739133264,3.4181,3053.9,3053.8,10.2337]
[1764739134962,6.776,3053.9,3053.8,3.2078]
[1764739135161,6.776,3053.9,3053.8,10.2337]
[1764739135866,6.776,3053.9,3053.8,3.2078]
[1764739136064,7.52911362,3053.9,3053.8,3.2078]
[1764739136468,0.75311362,3053.9,3053.8,10.2337]
[1764739136670,4.17121362,3053.9,3053.8,10.2337]
[1764739136870,7.52911362,3053.9,3053.8,3.2078]
[1764739137073,0.75311362,3053.9,3053.8,7.0259]
[1764739137370,0.00491087,3054.5,3054.4,7.0259]
[1764739138066,3.4181,3054.3,3054.2,10.2337]
[1764739138566,3.4181,3054.3,3054.2,7.0259]
[1764739138771,6.776,3054.3,3054.2,3.5967]
[1764739139267,3.4181,3054.3,3054.2,7.0259]
[1764739139581,3.42301087,3054.5,3054.4,7.0259]
[1764739140668,6.78091087,3054.5,3054.4,7.0259]
[1764739141569,6.78091087,3054.5,3054.4,3.5967]
[1764739141773,6.78091087,3054.5,3054.4,7.0259]
[1764739141967,3.42301087,3054.5,3054.4,7.0259]
[1764739142161,5.96855703,3056.1,3054.4,7.0259]
[1764739142162,2.34849794,3055.8,3055.4,7.0259]
[1764739142465,2.34849794,3055.8,3055.7,10.2337]
[1764739142466,3.4181,3055.8,3055.7,10.2337]
[1764739142974,2.1999,3056.0,3055.7,10.2337]
[1764739143170,2.20386618,3056.0,3055.7,10.2337]
[1764739143573,3.4181,3055.8,3055.7,10.2337]
[1764739144164,5.86706618,3056.0,3055.9,7.0802]
[1764739144370,0.00396618,3056.0,3055.9,7.08275937]
[1764739145066,3.66716618,3056.0,3055.9,7.08275937]
[1764739145261,9.20286618,3056.0,3055.9,0.00255937]
[1764739146674,5.67976618,3056.0,3055.9,7.08275937]
[1764739147078,0.00396618,3056.0,3055.9,7.08275937]
[1764739147668,3.66716618,3056.0,3055.9,7.08275937]
[1764739147870,3.66716618,3056.0,3055.9,0.00255937]
[1764739147871,9.20286618,3056.0,3055.9,0.00255937]
[1764739154379,9.20286618,3056.0,3055.9,3.49015937]
[1764739154584,9.20286618,3056.0,3055.9,0.00255937]
[1764739155978,5.67976618,3056.0,3055.9,7.08275937]
[1764739156476,9.20286618,3056.0,3055.9,7.08275937]
[1764739157171,9.20286618,3056.0,3055.9,10.29055937]
[1764739158478,5.67976618,3056.0,3055.9,10.29055937]
[1764739158678,9.20286618,3056.0,3055.9,3.21035937]
[1764739161580,9.20286618,3056.0,3055.9,10.29055937]
[1764739162393,9.20286618,3056.0,3055.9,6.69795937]
[1764739163583,5.67976618,3056.0,3055.9,10.29055937]
[1764739164975,9.20286618,3056.0,3055.9,10.29055937]
[1764739165177,5.67976618,3056.0,3055.9,10.29055937]
[1764739166582,9.20286618,3056.0,3055.9,3.21035937]
[1764739166778,9.91567671,3056.0,3055.9,3.21035937]
[1764739169474,2.72937671,3056.0,3055.9,10.29055937]
[1764739169680,0.00396618,3056.0,3055.9,10.29055937]
[1764739170881,3.66716618,3056.0,3055.9,10.29055937]
[1764739171185,0.00396618,3056.0,3055.9,10.29055937]
[1764739171376,0.00491087,3056.2,3056.1,7.0802]
[1764739172384,0.00745571,3056.2,3056.1,7.0802]
[1764739174388,6.99945571,3056.2,3056.1,3.4876]
[1764739174789,6.99945571,3056.2,3055.9,3.21035937]
[1764739174790,9.1703,3056.0,3055.9,3.21035937]
[1764739174985,9.1703,3056.0,3055.9,6.56505937]
[1764739175286,9.1703,3056.0,3055.9,10.32955937]
[1764739176388,9.1703,3056.0,3055.9,3.21035937]
[1764739176581,6.6578,3055.6,3055.5,3.21271087]
[1764739176787,6.6578,3055.6,3055.5,9.71761087]
[1764739177590,6.6578,3055.6,3055.5,3.21592556]
[1764739178887,3.3308,3055.6,3055.5,9.72082556]
[1764739179084,6.6578,3055.6,3055.5,9.72082556]
[1764739181294,6.6578,3055.6,3055.5,6.51302556]
[1764739181498,6.6578,3055.6,3055.5,0.00812556]
[1764739182095,6.6578,3055.6,3055.5,3.21642556]
[1764739182591,8.8361,3056.0,3055.9,3.2083]
[1764739182890,3.3308,3055.6,3055.5,6.51302556]
[1764739183396,7.36682098,3055.6,3055.5,0.00812556]
[1764739186685,10.57462098,3055.6,3055.5,0.00812556]
[1764739186887,6.6578,3055.1,3055.0,3.2078]
[1764739187193,5.3439,3054.0,3053.9,6.5049]
[1764739187490,5.3439,3054.0,3053.9,3.2083]
[1764739187491,9.37992098,3054.0,3053.9,3.2083]
[1764739187797,0.00424977,3054.0,3053.9,6.50754613]
[1764739188093,8.67514977,3054.0,3053.9,0.00264613]
[1764739188790,5.34814977,3054.0,3053.9,6.50754613]
[1764739188993,0.00424977,3054.0,3053.9,6.50754613]
[1764739189802,8.67514977,3054.0,3053.9,3.21094613]
[1764739189994,5.34814977,3054.0,3053.9,6.50754613]
[1764739190499,8.67514977,3054.0,3053.9,3.21094613]
[1764739190697,5.34814977,3054.0,3053.9,6.50754613]
[1764739191698,0.00424977,3054.0,3053.9,6.50754613]
[1764739192101,5.34814977,3054.0,3053.9,6.50754613]
[1764739192297,0.00424977,3054.0,3053.9,6.50754613]
[1764739192693,8.67514977,3054.0,3053.9,6.50754613]
[1764739192890,5.34814977,3054.0,3053.9,6.50754613]
[1764739193802,3.33504977,3054.0,3053.9,6.50754613]
[1764739194005,0.00424977,3054.0,3053.9,6.50754613]
[1764739194204,8.67514977,3054.0,3053.9,0.00264613]
[1764739195699,8.67514977,3054.0,3053.0,0.8859]
[1764739195700,3.3308,3053.1,3053.0,9.7127]
[1764739195898,2.0131,3053.5,3053.0,9.7127]
[1764739196604,2.0131,3053.5,3053.0,9.71630192]
[1764739197603,8.6709,3053.5,3053.4,6.5049]
[1764739197802,8.6709,3053.5,3053.0,3.21140192]
[1764739198405,6.6578,3053.1,3053.0,9.71630192]
[1764739199106,2.0131,3053.5,3053.0,9.71630192]
[1764739199299,6.6578,3053.1,3053.0,6.41970192]